[Event "Early Titled Tuesday Blitz | February 8 2022"]
[White "Blokhin, Sofia"]
[Black "Turzo, Attila"]
[WhiteFideId "4508190"]
[BlackFideId "704954"]
[WhiteElo "1762"]
[BlackElo "2478"]
[Result "0-1"]
[Round "05"]
[TimeControl "180+1"]
[Date "2022.02.08"]
[WhiteClock "0:00:06"]
[BlackClock "0:00:14"]

1. e4 {[%clk 0:03:00]}  c5 {[%clk 0:02:59]} 2. Nf3 {[%clk 0:03:00]}  e6 {[%clk 0:03:00]} 3. d4 {[%clk 0:03:00]}  cxd4 {[%clk 0:03:01]} 4. Nxd4 {[%clk 0:03:00]}  Nc6 {[%clk 0:03:01]} 5. Nc3 {[%clk 0:03:00]}  Qc7 {[%clk 0:03:02]} 6. a3 {[%clk 0:02:59]}  a6 {[%clk 0:02:59]} 7. f3 {[%clk 0:02:58]}  b5 {[%clk 0:02:55]} 8. Be3 {[%clk 0:02:57]}  Bb7 {[%clk 0:02:55]} 9. Qd2 {[%clk 0:02:53]}  Nf6 {[%clk 0:02:54]} 10. Nb3 {[%clk 0:02:48]}  Be7 {[%clk 0:02:53]} 11. O-O-O {[%clk 0:02:47]}  O-O {[%clk 0:02:53]} 12. g4 {[%clk 0:02:45]}  Rfd8 {[%clk 0:02:43]} 13. g5 {[%clk 0:02:40]}  Ne8 {[%clk 0:02:40]} 14. Qf2 {[%clk 0:02:29]}  Rdc8 {[%clk 0:02:31]} 15. f4 {[%clk 0:02:17]}  b4 {[%clk 0:02:29]} 16. axb4 {[%clk 0:02:15]}  Nxb4 {[%clk 0:02:27]} 17. Bd3 {[%clk 0:01:56]}  Nxd3+ {[%clk 0:02:02]} 18. Rxd3 {[%clk 0:01:55]}  d5 {[%clk 0:01:58]} 19. exd5 {[%clk 0:01:44]}  Bxd5 {[%clk 0:01:55]} 20. Nxd5 {[%clk 0:01:39]}  exd5 {[%clk 0:01:56]} 21. Rxd5 {[%clk 0:01:38]}  Rab8 {[%clk 0:01:51]} 22. Kb1 {[%clk 0:01:36]}  Nd6 {[%clk 0:01:43]} 23. Rhd1 {[%clk 0:01:28]}  Bf8 {[%clk 0:01:41]} 24. f5 {[%clk 0:01:15]}  Qc6 {[%clk 0:01:30]} 25. Bf4 {[%clk 0:01:07]}  Ne4 {[%clk 0:01:26]} 26. Qe2 {[%clk 0:00:56]}  Rb4 {[%clk 0:01:22]} 27. f6 {[%clk 0:00:38]}  Re8 {[%clk 0:00:56]} 28. Qg2 {[%clk 0:00:32]}  Qc8 {[%clk 0:00:43]} 29. h4 {[%clk 0:00:22]}  a5 {[%clk 0:00:38]} 30. Rxa5 {[%clk 0:00:19]}  Qb7 {[%clk 0:00:29]} 31. Rg1 {[%clk 0:00:14]}  Rxb3 {[%clk 0:00:25]} 32. cxb3 {[%clk 0:00:14]}  Qxb3 {[%clk 0:00:25]} 33. Ra3 {[%clk 0:00:11]}  Bxa3 {[%clk 0:00:21]} 34. fxg7 {[%clk 0:00:09]}  Nc3+ {[%clk 0:00:17]} 35. Kc1 {[%clk 0:00:08]}  Ne2+ {[%clk 0:00:14]} 36. Kb1 {[%clk 0:00:06]}  Qxb2# {[%clk 0:00:14]} 0-1


[Site "https://www.chess.com"]

[Event "Early Titled Tuesday Blitz | February 8 2022"]
[White "Bommini, Mounika Akshaya"]
[Black "Vifleemskaia, Svetlana"]
[WhiteFideId "25019872"]
[BlackFideId "4129490"]
[WhiteElo "1671"]
[BlackElo "1901"]
[Result "0-1"]
[Round "05"]
[TimeControl "180+1"]
[Date "2022.02.08"]
[WhiteClock "0:00:01"]
[BlackClock "0:00:12"]

1. d4 {[%clk 0:02:50]}  Nf6 {[%clk 0:02:58]} 2. Bf4 {[%clk 0:02:50]}  d5 {[%clk 0:02:57]} 3. e3 {[%clk 0:02:50]}  c5 {[%clk 0:02:57]} 4. c3 {[%clk 0:02:49]}  Nc6 {[%clk 0:02:57]} 5. Nd2 {[%clk 0:02:49]}  Qb6 {[%clk 0:02:57]} 6. Qb3 {[%clk 0:02:45]}  c4 {[%clk 0:02:55]} 7. Qc2 {[%clk 0:02:41]}  g6 {[%clk 0:02:54]} 8. e4 {[%clk 0:02:38]}  e6 {[%clk 0:02:51]} 9. e5 {[%clk 0:02:17]}  Nh5 {[%clk 0:02:49]} 10. Be3 {[%clk 0:02:13]}  Qa5 {[%clk 0:02:46]} 11. Be2 {[%clk 0:02:04]}  Ng7 {[%clk 0:02:44]} 12. f4 {[%clk 0:01:57]}  Nf5 {[%clk 0:02:42]} 13. Bf2 {[%clk 0:01:55]}  h5 {[%clk 0:02:42]} 14. Ngf3 {[%clk 0:01:54]}  b5 {[%clk 0:02:28]} 15. b4 {[%clk 0:01:44]}  Qb6 {[%clk 0:02:12]} 16. a4 {[%clk 0:01:36]}  Be7 {[%clk 0:01:53]} 17. O-O {[%clk 0:01:32]}  Bd7 {[%clk 0:01:53]} 18. axb5 {[%clk 0:01:25]}  Qxb5 {[%clk 0:01:52]} 19. Ra2 {[%clk 0:01:26]}  Kf8 {[%clk 0:01:46]} 20. Rfa1 {[%clk 0:01:24]}  Kg7 {[%clk 0:01:46]} 21. Qc1 {[%clk 0:01:13]}  a5 {[%clk 0:01:44]} 22. Nb3 {[%clk 0:01:05]}  a4 {[%clk 0:01:30]} 23. Nc5 {[%clk 0:00:48]}  Bxc5 {[%clk 0:01:29]} 24. dxc5 {[%clk 0:00:45]}  d4 {[%clk 0:01:17]} 25. cxd4 {[%clk 0:00:41]}  Qxb4 {[%clk 0:01:10]} 26. Qxc4 {[%clk 0:00:35]}  Qxc4 {[%clk 0:01:05]} 27. Bxc4 {[%clk 0:00:35]}  Nb4 {[%clk 0:01:05]} 28. Rb2 {[%clk 0:00:30]}  Rhb8 {[%clk 0:00:49]} 29. Be1 {[%clk 0:00:28]}  Nd5 {[%clk 0:00:31]} 30. Rxb8 {[%clk 0:00:17]}  Rxb8 {[%clk 0:00:30]} 31. Nd2 {[%clk 0:00:13]}  Nfe3 {[%clk 0:00:25]} 32. Bxd5 {[%clk 0:00:13]}  exd5 {[%clk 0:00:20]} 33. Kf2 {[%clk 0:00:10]}  Nc2 {[%clk 0:00:17]} 34. Ra2 {[%clk 0:00:11]}  Bf5 {[%clk 0:00:17]} 35. Rxa4 {[%clk 0:00:07]}  Rb2 {[%clk 0:00:15]} 36. Ke2 {[%clk 0:00:05]}  Nb4 {[%clk 0:00:14]} 37. Kd1 {[%clk 0:00:04]}  Bc2+ {[%clk 0:00:12]} 38. Ke2 {[%clk 0:00:01]}  Bxa4 {[%clk 0:00:12]} 0-1


[Site "https://www.chess.com"]

[Event "Early Titled Tuesday Blitz | February 8 2022"]
[White "Borisova, Ekaterina"]
[Black "Pinheiro, Iung Alicio de O."]
[WhiteFideId "34124184"]
[BlackFideId "2104350"]
[WhiteElo "2034"]
[BlackElo "2605"]
[Result "1-0"]
[Round "05"]
[TimeControl "180+1"]
[Date "2022.02.08"]
[WhiteClock "0:00:09"]
[BlackClock "0:00:13"]

1. d4 {[%clk 0:03:00]}  Nf6 {[%clk 0:02:59]} 2. c4 {[%clk 0:03:00]}  g6 {[%clk 0:02:57]} 3. Nc3 {[%clk 0:03:00]}  d5 {[%clk 0:02:58]} 4. cxd5 {[%clk 0:03:01]}  Nxd5 {[%clk 0:02:58]} 5. e4 {[%clk 0:03:02]}  Nxc3 {[%clk 0:02:59]} 6. bxc3 {[%clk 0:03:03]}  Bg7 {[%clk 0:02:59]} 7. Be3 {[%clk 0:03:03]}  c5 {[%clk 0:02:59]} 8. Qd2 {[%clk 0:03:03]}  Qa5 {[%clk 0:02:59]} 9. Rc1 {[%clk 0:03:04]}  O-O {[%clk 0:02:57]} 10. Nf3 {[%clk 0:03:04]}  Rd8 {[%clk 0:02:54]} 11. d5 {[%clk 0:03:02]}  e6 {[%clk 0:02:54]} 12. Bg5 {[%clk 0:03:00]}  f6 {[%clk 0:02:53]} 13. Bf4 {[%clk 0:03:00]}  Nc6 {[%clk 0:02:42]} 14. Bd3 {[%clk 0:02:19]}  f5 {[%clk 0:02:08]} 15. Bg5 {[%clk 0:01:25]}  Rd6 {[%clk 0:01:35]} 16. O-O {[%clk 0:00:52]}  Ne5 {[%clk 0:00:37]} 17. Nxe5 {[%clk 0:00:43]}  Bxe5 {[%clk 0:00:38]} 18. Qe3 {[%clk 0:00:23]}  Bxc3 {[%clk 0:00:20]} 19. Bc4 {[%clk 0:00:15]}  Bd4 {[%clk 0:00:19]} 20. Qg3 {[%clk 0:00:13]}  e5 {[%clk 0:00:18]} 21. Kh1 {[%clk 0:00:10]}  Qc7 {[%clk 0:00:17]} 22. f4 {[%clk 0:00:08]}  Qg7 {[%clk 0:00:17]} 23. fxe5 {[%clk 0:00:05]}  Bxe5 {[%clk 0:00:18]} 24. Bf4 {[%clk 0:00:05]}  Bxf4 {[%clk 0:00:16]} 25. Qxf4 {[%clk 0:00:06]}  Rd8 {[%clk 0:00:15]} 26. e5 {[%clk 0:00:06]}  Kh8 {[%clk 0:00:15]} 27. d6 {[%clk 0:00:06]}  Bd7 {[%clk 0:00:14]} 28. Bd5 {[%clk 0:00:06]}  Bc6 {[%clk 0:00:14]} 29. Bxc6 {[%clk 0:00:06]}  bxc6 {[%clk 0:00:14]} 30. h4 {[%clk 0:00:07]}  Qd7 {[%clk 0:00:15]} 31. Rfe1 {[%clk 0:00:07]}  Qe6 {[%clk 0:00:15]} 32. Rxc5 {[%clk 0:00:07]}  Rac8 {[%clk 0:00:15]} 33. Re2 {[%clk 0:00:06]}  Rxd6 {[%clk 0:00:15]} 34. exd6 {[%clk 0:00:06]}  Qxe2 {[%clk 0:00:15]} 35. Qd4+ {[%clk 0:00:04]}  Kg8 {[%clk 0:00:16]} 36. d7 {[%clk 0:00:04]}  Rd8 {[%clk 0:00:15]} 37. Rxc6 {[%clk 0:00:04]}  Qe1+ {[%clk 0:00:09]} 38. Kh2 {[%clk 0:00:05]}  Qe7 {[%clk 0:00:09]} 39. Rc8 {[%clk 0:00:04]}  Kf7 {[%clk 0:00:09]} 40. Qd5+ {[%clk 0:00:04]}  Kg7 {[%clk 0:00:09]} 41. Rxd8 {[%clk 0:00:04]}  Qxd8 {[%clk 0:00:10]} 42. Kh3 {[%clk 0:00:03]}  Kf6 {[%clk 0:00:09]} 43. Qd6+ {[%clk 0:00:03]}  Kf7 {[%clk 0:00:10]} 44. h5 {[%clk 0:00:03]}  g5 {[%clk 0:00:09]} 45. h6 {[%clk 0:00:03]}  g4+ {[%clk 0:00:09]} 46. Kg3 {[%clk 0:00:04]}  Qg5 {[%clk 0:00:06]} 47. d8=Q {[%clk 0:00:04]}  Qe3+ {[%clk 0:00:07]} 48. Kh2 {[%clk 0:00:04]}  g3+ {[%clk 0:00:08]} 49. Qxg3 {[%clk 0:00:04]}  Qxh6+ {[%clk 0:00:08]} 50. Qdh4 {[%clk 0:00:02]}  Qg6 {[%clk 0:00:05]} 51. Qxg6+ {[%clk 0:00:02]}  hxg6 {[%clk 0:00:05]} 52. Qb4 {[%clk 0:00:03]}  Ke6 {[%clk 0:00:06]} 53. Qa5 {[%clk 0:00:04]}  Kf6 {[%clk 0:00:07]} 54. Qxa7 {[%clk 0:00:04]}  f4 {[%clk 0:00:07]} 55. Qa6+ {[%clk 0:00:05]}  Kf5 {[%clk 0:00:08]} 56. Kg1 {[%clk 0:00:06]}  g5 {[%clk 0:00:09]} 57. Qf1 {[%clk 0:00:07]}  g4 {[%clk 0:00:10]} 58. a4 {[%clk 0:00:07]}  Ke4 {[%clk 0:00:10]} 59. a5 {[%clk 0:00:07]}  g3 {[%clk 0:00:11]} 60. a6 {[%clk 0:00:08]}  Kf5 {[%clk 0:00:11]} 61. a7 {[%clk 0:00:08]}  f3 {[%clk 0:00:12]} 62. Qxf3+ {[%clk 0:00:08]}  Kg5 {[%clk 0:00:13]} 63. Qxg3+ {[%clk 0:00:09]} 1-0


[Site "https://www.chess.com"]

[Event "Early Titled Tuesday Blitz | February 8 2022"]
[White "Bortnyk, Olexandr"]
[Black "Bacrot, Etienne"]
[WhiteFideId "14120828"]
[BlackFideId "605506"]
[WhiteElo "2723"]
[BlackElo "2673"]
[Result "1-0"]
[Round "05"]
[TimeControl "180+1"]
[Date "2022.02.08"]
[WhiteClock "0:00:04"]
[BlackClock "0:00:07"]

1. e4 {[%clk 0:02:58]}  d5 {[%clk 0:02:59]} 2. exd5 {[%clk 0:02:56]}  Qxd5 {[%clk 0:02:59]} 3. Nc3 {[%clk 0:02:56]}  Qa5 {[%clk 0:02:59]} 4. d4 {[%clk 0:02:53]}  Nf6 {[%clk 0:02:59]} 5. Bc4 {[%clk 0:02:46]}  Bg4 {[%clk 0:02:58]} 6. f3 {[%clk 0:02:24]}  Bh5 {[%clk 0:02:57]} 7. Ne2 {[%clk 0:02:23]}  Nc6 {[%clk 0:02:56]} 8. d5 {[%clk 0:02:19]}  O-O-O {[%clk 0:02:46]} 9. Bd2 {[%clk 0:01:58]}  Ne5 {[%clk 0:02:35]} 10. Bb3 {[%clk 0:01:58]}  e6 {[%clk 0:02:25]} 11. O-O {[%clk 0:01:34]}  exd5 {[%clk 0:02:18]} 12. Nf4 {[%clk 0:01:18]}  Qb6+ {[%clk 0:01:53]} 13. Kh1 {[%clk 0:01:18]}  d4 {[%clk 0:01:54]} 14. Na4 {[%clk 0:01:07]}  Qc6 {[%clk 0:01:46]} 15. Nxh5 {[%clk 0:01:06]}  Nxh5 {[%clk 0:01:46]} 16. f4 {[%clk 0:01:00]}  Nc4 {[%clk 0:01:42]} 17. Bxc4 {[%clk 0:00:51]}  Qxc4 {[%clk 0:01:42]} 18. Qxh5 {[%clk 0:00:51]}  Qxa4 {[%clk 0:01:40]} 19. Qxf7 {[%clk 0:00:51]}  Bd6 {[%clk 0:01:25]} 20. Qb3 {[%clk 0:00:38]}  Qxb3 {[%clk 0:01:23]} 21. axb3 {[%clk 0:00:39]}  a6 {[%clk 0:01:22]} 22. Rae1 {[%clk 0:00:34]}  Rhe8 {[%clk 0:01:22]} 23. g3 {[%clk 0:00:33]}  Kd7 {[%clk 0:01:22]} 24. Kg2 {[%clk 0:00:34]}  c5 {[%clk 0:01:21]} 25. Kf3 {[%clk 0:00:26]}  Kc6 {[%clk 0:01:22]} 26. h4 {[%clk 0:00:26]}  h5 {[%clk 0:01:17]} 27. g4 {[%clk 0:00:25]}  hxg4+ {[%clk 0:01:15]} 28. Kxg4 {[%clk 0:00:26]}  Kd5 {[%clk 0:01:16]} 29. h5 {[%clk 0:00:22]}  b5 {[%clk 0:01:13]} 30. f5 {[%clk 0:00:22]}  c4 {[%clk 0:00:58]} 31. bxc4+ {[%clk 0:00:23]}  bxc4 {[%clk 0:00:58]} 32. Ra1 {[%clk 0:00:20]}  Re2 {[%clk 0:00:58]} 33. Bf4 {[%clk 0:00:16]}  Bxf4 {[%clk 0:00:48]} 34. Kxf4 {[%clk 0:00:17]}  Rxc2 {[%clk 0:00:47]} 35. Ra5+ {[%clk 0:00:15]}  Kc6 {[%clk 0:00:47]} 36. Rxa6+ {[%clk 0:00:16]}  Kb5 {[%clk 0:00:46]} 37. Ra7 {[%clk 0:00:09]}  d3 {[%clk 0:00:44]} 38. Rb7+ {[%clk 0:00:06]}  Kc5 {[%clk 0:00:42]} 39. Rc7+ {[%clk 0:00:06]}  Kb5 {[%clk 0:00:35]} 40. Rb7+ {[%clk 0:00:06]}  Kc6 {[%clk 0:00:36]} 41. Rxg7 {[%clk 0:00:06]}  d2 {[%clk 0:00:34]} 42. Rd1 {[%clk 0:00:03]}  Rxb2 {[%clk 0:00:32]} 43. Rg3 {[%clk 0:00:04]}  Kc5 {[%clk 0:00:22]} 44. f6 {[%clk 0:00:04]}  Kd4 {[%clk 0:00:20]} 45. f7 {[%clk 0:00:04]}  c3 {[%clk 0:00:14]} 46. Rg8 {[%clk 0:00:04]}  Rbb8 {[%clk 0:00:14]} 47. Rg2 {[%clk 0:00:02]}  Rb7 {[%clk 0:00:10]} 48. Rgxd2+ {[%clk 0:00:01]}  cxd2 {[%clk 0:00:09]} 49. Rxd2+ {[%clk 0:00:02]}  Kc4 {[%clk 0:00:06]} 50. Rxd8 {[%clk 0:00:03]}  Rxf7+ {[%clk 0:00:06]} 51. Kg5 {[%clk 0:00:04]}  Rf8 {[%clk 0:00:07]} 52. Rxf8 {[%clk 0:00:04]} 1-0


[Site "https://www.chess.com"]

[Event "Early Titled Tuesday Blitz | February 8 2022"]
[White "Bugayev, Vladimir"]
[Black "Politov, Pavel Y."]
[WhiteFideId "30901480"]
[BlackFideId "24110515"]
[WhiteElo "2362"]
[BlackElo "2090"]
[Result "1-0"]
[Round "05"]
[TimeControl "180+1"]
[Date "2022.02.08"]
[WhiteClock "0:01:18"]
[BlackClock "0:00:44"]

1. e4 {[%clk 0:03:00]}  c5 {[%clk 0:02:56]} 2. Nc3 {[%clk 0:03:00]}  d6 {[%clk 0:02:53]} 3. f4 {[%clk 0:02:59]}  Nc6 {[%clk 0:02:47]} 4. g3 {[%clk 0:02:55]}  g6 {[%clk 0:02:42]} 5. Bg2 {[%clk 0:02:53]}  Bg7 {[%clk 0:02:38]} 6. d3 {[%clk 0:02:54]}  Nf6 {[%clk 0:02:35]} 7. Nf3 {[%clk 0:02:55]}  O-O {[%clk 0:02:33]} 8. O-O {[%clk 0:02:55]}  a6 {[%clk 0:02:30]} 9. h3 {[%clk 0:02:55]}  Rb8 {[%clk 0:02:25]} 10. g4 {[%clk 0:02:55]}  b5 {[%clk 0:02:23]} 11. Ne2 {[%clk 0:02:55]}  Bb7 {[%clk 0:02:14]} 12. Ng3 {[%clk 0:02:55]}  Qc7 {[%clk 0:02:08]} 13. c3 {[%clk 0:02:42]}  b4 {[%clk 0:01:54]} 14. c4 {[%clk 0:02:40]}  Nd7 {[%clk 0:01:45]} 15. g5 {[%clk 0:02:31]}  Nd4 {[%clk 0:01:40]} 16. Rb1 {[%clk 0:02:21]}  e5 {[%clk 0:01:30]} 17. Nxd4 {[%clk 0:02:18]}  exd4 {[%clk 0:01:28]} 18. f5 {[%clk 0:02:10]}  Be5 {[%clk 0:01:22]} 19. Bf4 {[%clk 0:02:10]}  Bxf4 {[%clk 0:01:18]} 20. Rxf4 {[%clk 0:02:11]}  d5 {[%clk 0:01:18]} 21. Qf1 {[%clk 0:02:06]}  dxc4 {[%clk 0:01:11]} 22. dxc4 {[%clk 0:01:55]}  Rbd8 {[%clk 0:01:04]} 23. f6 {[%clk 0:01:48]}  Ne5 {[%clk 0:01:02]} 24. Rh4 {[%clk 0:01:34]}  Nxc4 {[%clk 0:00:58]} 25. Nf5 {[%clk 0:01:34]}  Ne5 {[%clk 0:00:50]} 26. Ne7+ {[%clk 0:01:29]}  Kh8 {[%clk 0:00:47]} 27. Rxh7+ {[%clk 0:01:19]}  Kxh7 {[%clk 0:00:44]} 28. Qf2 {[%clk 0:01:18]} 1-0


[Site "https://www.chess.com"]

[Event "Early Titled Tuesday Blitz | February 8 2022"]
[White "Carlsson, Ludvig"]
[Black "Yushko, Olga"]
[WhiteFideId "1727010"]
[BlackFideId "14114500"]
[WhiteElo "2178"]
[BlackElo "2028"]
[Result "1-0"]
[Round "05"]
[TimeControl "180+1"]
[Date "2022.02.08"]
[WhiteClock "0:02:25"]
[BlackClock "0:02:05"]

1. Nf3 {[%clk 0:03:00]}  e6 {[%clk 0:02:59]} 2. c4 {[%clk 0:03:00]}  f5 {[%clk 0:03:00]} 3. b3 {[%clk 0:02:59]}  Nf6 {[%clk 0:03:00]} 4. Bb2 {[%clk 0:03:00]}  d6 {[%clk 0:03:00]} 5. Nc3 {[%clk 0:02:57]}  Be7 {[%clk 0:03:00]} 6. Qc2 {[%clk 0:02:55]}  e5 {[%clk 0:02:58]} 7. d4 {[%clk 0:02:54]}  e4 {[%clk 0:02:58]} 8. Nd2 {[%clk 0:02:52]}  Nc6 {[%clk 0:02:57]} 9. e3 {[%clk 0:02:52]}  Nb4 {[%clk 0:02:56]} 10. Qb1 {[%clk 0:02:51]}  a5 {[%clk 0:02:57]} 11. a3 {[%clk 0:02:51]}  Nc6 {[%clk 0:02:57]} 12. Be2 {[%clk 0:02:51]}  O-O {[%clk 0:02:57]} 13. h3 {[%clk 0:02:49]}  Qe8 {[%clk 0:02:56]} 14. Qc2 {[%clk 0:02:49]}  Qg6 {[%clk 0:02:54]} 15. g3 {[%clk 0:02:47]}  Nh5 {[%clk 0:02:44]} 16. Nd5 {[%clk 0:02:46]}  Bd8 {[%clk 0:02:44]} 17. O-O-O {[%clk 0:02:42]}  Ne7 {[%clk 0:02:39]} 18. g4 {[%clk 0:02:36]}  Nf6 {[%clk 0:02:30]} 19. Nf4 {[%clk 0:02:33]}  Qf7 {[%clk 0:02:26]} 20. g5 {[%clk 0:02:33]}  Nd7 {[%clk 0:02:17]} 21. h4 {[%clk 0:02:32]}  d5 {[%clk 0:02:10]} 22. cxd5 {[%clk 0:02:30]}  Nxd5 {[%clk 0:02:09]} 23. Nxd5 {[%clk 0:02:31]}  c6 {[%clk 0:02:05]} 24. Nc7 {[%clk 0:02:25]} 1-0


[Site "https://www.chess.com"]

[Event "Early Titled Tuesday Blitz | February 8 2022"]
[White "De Souza, Cristiano Gomes"]
[Black "Al Mukhaini, Shima"]
[WhiteFideId "2151758"]
[BlackFideId "22005854"]
[WhiteElo "2068"]
[BlackElo "2385"]
[Result "0-1"]
[Round "05"]
[TimeControl "180+1"]
[Date "2022.02.08"]
[WhiteClock "0:00:45"]
[BlackClock "0:00:46"]

1. d4 {[%clk 0:02:55]}  e5 {[%clk 0:02:51]} 2. dxe5 {[%clk 0:02:52]}  Nc6 {[%clk 0:02:51]} 3. Nf3 {[%clk 0:02:51]}  Qe7 {[%clk 0:02:51]} 4. Bf4 {[%clk 0:02:52]}  Qb4+ {[%clk 0:02:51]} 5. Bd2 {[%clk 0:02:52]}  Qxb2 {[%clk 0:02:51]} 6. Nc3 {[%clk 0:02:52]}  a6 {[%clk 0:02:50]} 7. Rb1 {[%clk 0:02:51]}  Qa3 {[%clk 0:02:50]} 8. e4 {[%clk 0:02:49]}  b5 {[%clk 0:02:50]} 9. Rb3 {[%clk 0:02:44]}  Qc5 {[%clk 0:02:49]} 10. Be3 {[%clk 0:02:42]}  Qe7 {[%clk 0:02:49]} 11. Nd5 {[%clk 0:02:41]}  Qd8 {[%clk 0:02:49]} 12. Be2 {[%clk 0:02:38]}  Nge7 {[%clk 0:02:48]} 13. O-O {[%clk 0:02:37]}  Ng6 {[%clk 0:02:48]} 14. Bd4 {[%clk 0:02:31]}  Nxd4 {[%clk 0:02:42]} 15. Qxd4 {[%clk 0:02:30]}  c6 {[%clk 0:02:41]} 16. Ne3 {[%clk 0:02:27]}  Be7 {[%clk 0:02:20]} 17. Nf5 {[%clk 0:02:25]}  O-O {[%clk 0:02:19]} 18. Rd1 {[%clk 0:02:21]}  f6 {[%clk 0:02:09]} 19. c4 {[%clk 0:02:12]}  fxe5 {[%clk 0:02:01]} 20. Nxe5 {[%clk 0:02:10]}  Bf6 {[%clk 0:01:57]} 21. Nxg6 {[%clk 0:01:32]}  Bxd4 {[%clk 0:01:33]} 22. Nge7+ {[%clk 0:01:29]}  Kh8 {[%clk 0:01:27]} 23. Rxd4 {[%clk 0:01:20]}  g6 {[%clk 0:01:15]} 24. Nxg6+ {[%clk 0:01:13]}  hxg6 {[%clk 0:01:14]} 25. Rh3+ {[%clk 0:01:14]}  Kg8 {[%clk 0:01:14]} 26. cxb5 {[%clk 0:01:11]}  gxf5 {[%clk 0:01:11]} 27. exf5 {[%clk 0:01:07]}  Qf6 {[%clk 0:00:50]} 28. Bc4+ {[%clk 0:00:54]}  d5 {[%clk 0:00:49]} 29. Rg4+ {[%clk 0:00:54]}  Kf7 {[%clk 0:00:48]} 30. Bf1 {[%clk 0:00:45]}  Bxf5 {[%clk 0:00:46]} 0-1


[Site "https://www.chess.com"]